fUSD/lending_fUSD_20241220
["ID","MTS","AMOUNT","RATE_DAILY","PERIOD"]
[346058716,1734680216601,-1000.0,0.00013,2]
[346058717,1734680216630,-1000.0,0.00013,2]
[346058718,1734680216656,-1000.0,0.00013,2]
[346058719,1734680216682,-1000.0,0.00013,2]
[346058720,1734680216710,-209.14498717,0.00013,2]
[346058721,1734680217876,-60231.17113132,0.00013,2]
[346058722,1734680233118,-500.0,0.0001287,2]
[346058723,1734680233150,-300.0,0.00012999,2]
[346058724,1734680233224,-179284.0,0.00013,2]
[346058725,1734680257113,154.28,0.00016658,30]
[346058726,1734680287538,5010.02,0.000235,120]
[346058788,1734680489407,176.86,0.00010137,2]
[346058797,1734680735218,-417.38749484,0.0001262,2]
[346058798,1734680735241,-9894.7551318,0.0001264,2]
[346058799,1734680735262,-160.29252548,0.0001274,2]
[346058800,1734680735283,-607.733,0.0001274,2]
[346058801,1734680735304,-417.38749482,0.0001276,2]
[346058802,1734680735324,-3000.0,0.0001287,2]
[346058803,1734680735345,-417.38749482,0.000129,2]
[346058804,1734680735500,-150.0,0.00012959,2]
[346058805,1734680735526,-189.53439018,0.0001299,2]
[346058806,1734680735547,-300.0,0.00012998,2]
[346058807,1734680735568,-500.0,0.00012999,2]
[346058808,1734680735589,-500.0,0.00012999,2]
[346058809,1734680735609,-500.0,0.00012999,2]
[346058810,1734680735631,-500.0,0.00012999,2]
[346058811,1734680735651,-416.45255627,0.00012999,2]
[346058812,1734680735676,-30599.13577863,0.00013,2]
[346058813,1734680756138,-439.742,0.0001235,2]
[346058814,1734680756159,-54839.76705567,0.00013,2]
[346058815,1734680758245,150.0,0.00015,15]
[346058816,1734680810043,-220.33,0.00012568,2]
[346058817,1734680810069,-166.5,0.00012669,2]
[346058818,1734680810095,-188.613894,0.000129,2]
[346058819,1734680810122,-4014.25725149,0.000129,2]
[346058820,1734680810147,-300.0,0.00012999,2]
[346058821,1734680810174,-80110.29885451,0.00013,2]
[346058822,1734680825117,-29428.39934298,0.00013,2]
[346058823,1734680835122,-6591.18535822,0.00013,2]
[346058824,1734680952130,-300.0,0.00012999,2]
[346058825,1734680952153,-3429.42002301,0.00013,2]
[346058826,1734681006630,150.0,0.00015047,15]
[346058831,1734681031459,-2749.76208286,0.00013,2]
[346058832,1734681031660,-500.04139326,0.00013,2]
[346058833,1734681031671,-356.15532581,0.00013,2]
[346058834,1734681031682,-19609.429277,0.00013,2]
[346058835,1734681031715,-72843.14300881,0.00013,2]
[346058836,1734681031728,-31186.96238387,0.00013,2]
[346058837,1734681031776,-8857.95672403,0.00013,2]
[346058846,1734681037456,-11966.6214993,0.00013,2]
[346058847,1734681037615,-114.496575,0.00013,2]
[346058848,1734681037701,-9998.00028611,0.00013,2]
[346058849,1734681037754,-223846.64299411,0.00013,2]
[346058850,1734681037764,-450.0,0.00013,2]
[346058851,1734681037777,-50000.0,0.00013,2]
[346058852,1734681037786,-554.00173,0.00013,2]
[346058853,1734681037795,-150.0,0.00013,2]
[346058854,1734681037806,-150.0,0.00013,2]
[346058855,1734681037816,-150.87130879,0.00013,2]
[346058856,1734681037826,-722.274129,0.00013018,2]
[346058857,1734681037835,-658.8891332,0.00013027,2]
[346058858,1734681037846,-177.2367987,0.00013036,2]
[346058859,1734681037855,-4279.8084612,0.00013045,2]
[346058860,1734681037865,-500.0,0.00013699,2]
[346058861,1734681037874,-500.0,0.00013699,2]
[346058862,1734681037883,-500.0,0.00013699,2]
[346058863,1734681037891,-500.0,0.00013699,2]
[346058864,1734681037901,-240.65,0.00013699,2]
[346058865,1734681037910,-800.0,0.00013699,2]
[346058866,1734681037919,-800.0,0.00013699,2]
[346058867,1734681037928,-800.0,0.00013699,2]
[346058868,1734681037938,-800.0,0.00013699,2]
[346058869,1734681037947,-800.0,0.00013699,2]
[346058871,1734681037957,-800.0,0.00013699,2]
[346058872,1734681037966,-1161.73,0.0001393,2]
[346058873,1734681037975,-188.61389391,0.0001404,2]
[346058874,1734681037987,-4014.25725148,0.0001404,2]
[346058875,1734681037996,-150.0,0.00014949,5]
[346058876,1734681038005,-150.0,0.0001495,5]
[346058877,1734681038015,-240.33597619,0.0001495,5]
[346058878,1734681038024,-500.0,0.00015,2]
[346058879,1734681038033,-188.61389391,0.00015181,2]
[346058880,1734681038043,-4014.25725148,0.00015181,2]
[346058881,1734681038052,-325.77,0.00015519,2]
[346058882,1734681038062,-9125.03195845,0.00015527,2]
[346058883,1734681038117,-6142.16767295,0.00015527,2]
[346058903,1734681039841,-298.7603686,0.00015527,2]
[346058904,1734681039852,-53.94912954,0.00015533,2]
[346058915,1734681042930,-2624.45087046,0.00015533,2]
[346058916,1734681042939,-168.69,0.0001556,2]
[346058917,1734681042950,-11881.8,0.00015646,2]
[346058918,1734681042960,-330.6,0.00015665,3]
[346058919,1734681042969,-1138.9,0.00015672,2]
[346058920,1734681042978,-23900.0,0.00015681,2]
[346058921,1734681042989,-5887.01117465,0.000157,2]
[346058922,1734681042999,-167.27,0.00015731,2]
[346058923,1734681043008,-1135.34,0.00015731,2]
[346058924,1734681043018,-250.0,0.0001575,2]
[346058925,1734681043027,-250.0,0.00015782,2]
[346058927,1734681043036,-1466.71,0.00015798,2]
[346058929,1734681043046,-623.63631224,0.00015864,2]
[346058930,1734681043055,-4177.53,0.00015896,2]
[346058931,1734681043064,-496.31845509,0.00015961,2]
[346058932,1734681043076,-844.98154491,0.00015961,2]
[346058933,1734681043086,-1908.18,0.00015964,2]
[346058934,1734681043095,-1000.0,0.00016037,2]
[346058935,1734681043106,-200.0,0.00016056,2]
[346058936,1734681043115,-200.0,0.00016081,2]
[346058937,1734681043124,-250.0,0.00016131,2]
[346058938,1734681043134,-2440.82,0.0001616,2]
[346058939,1734681043143,-166.77,0.00016171,2]
[346058940,1734681043152,-500.0,0.00016173,2]
[346058941,1734681043161,-1161.73,0.00016194,2]
[346058942,1734681043170,-250.0,0.00016199,2]
[346058943,1734681043179,-1295.44,0.00016256,2]
[346058944,1734681043189,-188.61389391,0.00016321,2]
[346058945,1734681043199,-4014.25725148,0.00016321,2]
[346058946,1734681043208,-24181.36060146,0.000165,2]
[346058947,1734681043218,-11774.49029805,0.00016505,2]
[346058948,1734681043227,-692.35641019,0.00016565,2]
[346058952,1734681045581,-1160.06358981,0.00016565,2]
[346058953,1734681045591,-800.0,0.00016658,2]
[346058954,1734681045600,-1056.0,0.00016699,2]
[346058955,1734681045609,-186.68,0.00016712,2]
[346058956,1734681045618,-1341.3,0.00016759,2]
[346058957,1734681045627,-5227.73942421,0.00016781,7]
[346058958,1734681045636,-858.52,0.00016781,2]
[346058959,1734681045646,-176.86,0.00016813,2]
[346058960,1734681045655,-277.8,0.00016835,2]
[346058961,1734681045664,-240.65,0.00016895,2]
[346058962,1734681045673,-264.59,0.00016897,2]
[346058963,1734681045682,-264.59,0.00016902,2]
[346058964,1734681045691,-264.59,0.00016906,2]
[346058965,1734681045701,-264.59,0.0001691,2]
[346058966,1734681045710,-264.59,0.00016915,2]
[346058967,1734681045719,-264.59,0.00016919,2]
[346058968,1734681045728,-264.59,0.00016924,2]
[346058969,1734681045738,-264.59,0.00016928,2]
[346058970,1734681045747,-264.59,0.00016933,2]
[346058971,1734681045756,-264.59,0.00016937,2]
[346058972,1734681045766,-264.59,0.00016942,2]
[346058973,1734681045779,-264.59,0.00016946,2]
[346058974,1734681045788,-264.59,0.0001695,2]
[346058975,1734681045797,-264.59,0.00016955,2]
[346058976,1734681045806,-264.59,0.00016959,2]
[346058977,1734681045817,-264.59,0.00016964,2]
[346058978,1734681045826,-264.59,0.00016968,2]
[346058979,1734681045835,-264.59,0.00016973,2]
[346058980,1734681045846,-264.59,0.00016977,2]
[346058981,1734681045855,-264.59,0.00016981,2]
[346058982,1734681045865,-201.74,0.00016992,2]
[346058983,1734681045874,-550.0,0.00017,2]
[346058985,1734681045884,-198.0,0.000174,2]
[346058986,1734681045893,-188.61389391,0.00017462,2]
[346058987,1734681045904,-4014.25725148,0.00017462,2]
[346058988,1734681045913,-1341.3,0.00017557,2]
[346058989,1734681045922,-1056.0,0.00017578,2]
[346058991,1734681045932,-1135.34,0.00017698,2]
[346058993,1734681045941,-268.49472847,0.00017899,2]
[346058994,1734681045950,-5562.0,0.000179,3]
[346058996,1734681045959,-200.3,0.000179,2]
[346058997,1734681045968,-554.00174,0.00018,2]
[346058998,1734681045977,-1000.0,0.00018042,2]
[346058999,1734681045988,-150.66,0.00018065,2]
[346059000,1734681045997,-277.8,0.00018205,2]
[346059001,1734681046006,-9794.66914246,0.00018292,2]
[346059002,1734681046014,-5000.0,0.00018292,2]
[346059003,1734681046023,-1341.3,0.00018355,2]
[346059004,1734681046033,-5562.0,0.000184,5]
[346059005,1734681046042,-1161.73,0.00018458,2]
[346059006,1734681046051,-1056.0,0.00018503,2]
[346059007,1734681046060,-533.0,0.000186,2]
[346059008,1734681046069,-188.61389391,0.00018602,2]
[346059009,1734681046079,-4014.25725148,0.00018602,2]
[346059010,1734681046088,-216.12463699,0.00018661,2]
[346059011,1734681046097,-151.0,0.00018761,2]
[346059012,1734681046106,-220.33,0.00018853,2]
[346059013,1734681046115,-151.0,0.00018861,2]
[346059014,1734681046125,-858.52,0.00018879,2]
[346059015,1734681046134,-151.0,0.00018961,2]
[346059016,1734681046143,-500.0,0.00018972,2]
[346059017,1734681046152,-1200.0,0.00018972,2]
[346059018,1734681046162,-600.0,0.00019,2]
[346059019,1734681046171,-166.5,0.00019003,2]
[346059020,1734681046180,-151.0,0.00019061,2]
[346059021,1734681046189,-1341.3,0.00019153,2]
[346059022,1734681046198,-151.0,0.00019161,2]
[346059023,1734681046207,-200.3,0.00019168,2]
[346059024,1734681046217,-1000.0,0.00019178,2]
[346059025,1734681046226,-1000.0,0.00019178,2]
[346059026,1734681046236,-1000.0,0.00019178,2]
[346059027,1734681046245,-1000.0,0.00019178,2]
[346059028,1734681046254,-1000.0,0.00019178,2]
[346059029,1734681046263,-1000.0,0.00019178,2]
[346059030,1734681046273,-1000.0,0.00019178,2]
[346059031,1734681046282,-1000.0,0.00019178,2]
[346059032,1734681046291,-1000.0,0.00019178,2]
[346059033,1734681046300,-723.0,0.00019178,2]
[346059034,1734681046309,-1513.70274261,0.00019178,2]
[346059035,1734681046749,-2486.29725739,0.00019178,2]
[346059036,1734681046758,-151.0,0.00019261,2]
[346059037,1734681046768,-151.0,0.00019361,2]
[346059038,1734681046780,-1056.0,0.00019429,2]
[346059039,1734681046789,-1135.34,0.00019664,2]
[346059040,1734681046798,-188.61389391,0.00019743,2]
[346059041,1734681046809,-3024.26380128,0.00019743,2]
[346059042,1734681046827,-331.13675384,0.00019743,2]
[346059043,1734681046840,-404.63050725,0.00019743,2]
[346059044,1734681046873,-254.22618911,0.00019743,2]
[346059045,1734681046883,-171.12,0.00019902,2]
[346059046,1734681046893,-28098.63637733,0.0001998,2]
[346059047,1734681046902,-4475.0,0.0002,2]
[346059048,1734681046911,-178.2770547,0.0002,2]
[346059049,1734681046921,-4398.45823529,0.0002,2]
[346059050,1734681046930,-3000.0,0.0002,2]
[346059051,1734681046940,-675.07352,0.0002,2]
[346059052,1734681046950,-1000.0,0.00020047,2]
[346059053,1734681046959,-200.3,0.00020058,2]
[346059054,1734681046969,-500.0,0.00020068,2]
[346059055,1734681046978,-1200.0,0.00020068,2]
[346059056,1734681046987,-500.0,0.00020068,2]
[346059057,1734681046997,-240.65,0.00020091,2]
[346059058,1734681047007,-150.0,0.00020196,2]
[346059059,1734681047017,-150.0,0.00020266,2]
[346059060,1734681047026,-150.0,0.0002035,2]
[346059061,1734681047035,-1056.0,0.000204,2]
[346059062,1734681047045,-150.0,0.00020427,2]
[346059063,1734681047055,-150.0,0.0002046,2]
[346059064,1734681047064,-150.0,0.00020483,2]
[346059065,1734681047073,-176.64,0.00020548,2]
[346059066,1734681047083,-150.0,0.00020672,2]
[346059067,1734681047092,-150.0,0.00020699,2]
[346059068,1734681047101,-1161.73,0.00020722,2]
[346059069,1734681047110,-150.0,0.00020722,2]
[346059070,1734681047120,-150.0,0.00020843,2]
[346059071,1734681047129,-150.0,0.00020845,2]
[346059072,1734681047139,-188.61389391,0.00020883,2]
[346059073,1734681047148,-4014.25725148,0.00020883,2]
[346059074,1734681047157,-500.0,0.000209,7]
[346059075,1734681047167,-300.0,0.00020909,2]
[346059076,1734681047176,-150.0,0.00020936,2]
[346059077,1734681047185,-858.52,0.00020976,2]
[346059078,1734681047195,-150.0,0.00020994,2]
[346059079,1734681047204,-449.26341185,0.00021,2]
[346059080,1734681047215,-650.0,0.00021,2]
[346059081,1734681047224,-150.0,0.00021024,2]
[346059082,1734681047234,-200.0,0.00021096,2]
[346059083,1734681047245,-150.0,0.00021114,2]
[346059084,1734681047254,-150.0,0.00021139,2]
[346059085,1734681047263,-150.0,0.00021139,2]
[346059086,1734681047273,-500.0,0.00021164,2]
[346059087,1734681047283,-1200.0,0.00021164,2]
[346059088,1734681047292,-1000.0,0.000212,2]
[346059089,1734681047302,-150.0,0.00021221,2]
[346059090,1734681047311,-150.0,0.00021309,2]
[346059091,1734681047321,-2008.0,0.000214,2]
[346059092,1734681047331,-1264.0,0.000214,2]
[346059093,1734681047341,-565.0,0.000214,2]
[346059094,1734681047350,-633.0,0.000214,2]
[346059095,1734681047360,-150.647,0.000214,2]
[346059096,1734681047370,-1905.45,0.000214,2]
[346059097,1734681047379,-1264.082,0.000214,2]
[346059098,1734681047388,-3769.0,0.000214,2]
[346059099,1734681047397,-818.0,0.000214,2]
[346059100,1734681047406,-927.0,0.000214,2]
[346059101,1734681047416,-536.0,0.000214,2]
[346059102,1734681047425,-3635.0,0.000214,2]
[346059103,1734681047435,-1171.668,0.000214,2]
[346059104,1734681047444,-150.0,0.000214,2]
[346059105,1734681047453,-13750.0,0.000214,2]
[346059106,1734681047463,-3885.0,0.000214,2]
[346059107,1734681047472,-150.0,0.000214,2]
[346059108,1734681047482,-150.0,0.000214,2]
[346059109,1734681047492,-1102.852,0.000214,2]
[346059110,1734681047501,-1056.0,0.0002142,2]
[346059111,1734681047510,-150.0,0.00021466,2]
[346059112,1734681047520,-1000.0,0.000215,7]
[346059113,1734681047530,-1600.0,0.000216,7]
[346059114,1734681047539,-150.0,0.00021604,2]
[346059115,1734681047549,-153.0,0.00021625,2]
[346059116,1734681047559,-153.0,0.00021625,2]
[346059117,1734681047568,-153.0,0.00021625,2]
[346059118,1734681047579,-153.0,0.00021625,2]
[346059119,1734681047588,-153.0,0.00021625,2]
[346059120,1734681047598,-153.0,0.00021625,2]
[346059121,1734681047608,-153.0,0.00021625,2]
[346059122,1734681047618,-153.0,0.00021625,2]
[346059123,1734681047627,-153.0,0.00021625,2]
[346059124,1734681047638,-153.0,0.00021625,2]
[346059125,1734681047647,-153.0,0.00021625,2]
[346059126,1734681047656,-153.0,0.00021625,2]
[346059127,1734681047665,-153.0,0.00021625,2]
[346059128,1734681047674,-153.0,0.00021625,2]
[346059129,1734681047684,-153.0,0.00021625,2]
[346059130,1734681047693,-153.0,0.00021625,2]
[346059131,1734681047702,-153.0,0.00021625,2]
[346059132,1734681047712,-153.0,0.00021625,2]
[346059133,1734681047721,-153.0,0.00021625,2]
[346059134,1734681047730,-153.0,0.00021625,2]
[346059135,1734681047740,-153.0,0.00021625,2]
[346059136,1734681047750,-153.0,0.00021625,2]
[346059137,1734681047759,-12.48753123,0.00021625,2]
[346059138,1734681047784,-140.51246877,0.00021625,2]
[346059139,1734681047794,-153.0,0.00021625,2]
[346059140,1734681047803,-153.0,0.00021625,2]
[346059141,1734681047812,-153.0,0.00021625,2]
[346059142,1734681047822,-153.0,0.00021625,2]
[346059143,1734681047831,-153.0,0.00021625,2]
[346059144,1734681047840,-153.0,0.00021625,2]
[346059145,1734681047849,-153.0,0.00021625,2]
[346059146,1734681047858,-153.0,0.00021625,2]
[346059147,1734681047868,-153.0,0.00021625,2]
[346059148,1734681047877,-150.0,0.00021628,2]
[346059149,1734681047886,-1135.34,0.0002163,2]
[346059150,1734681047895,-200.07725191,0.00021673,2]
[346059151,1734681047904,-2100.0,0.000217,7]
[346059152,1734681047914,-180.64344203,0.000217,2]
[346059153,1734681047923,-200.3,0.00021707,2]
[346059154,1734681047933,-200.3,0.00021707,2]
[346059155,1734681047942,-200.3,0.00021707,2]
[346059156,1734681047951,-200.3,0.00021707,2]
[346059157,1734681047961,-200.3,0.00021707,2]
[346059158,1734681047970,-200.3,0.00021707,2]
[346059159,1734681047979,-200.3,0.00021707,2]
[346059160,1734681047988,-200.3,0.00021707,2]
[346059161,1734681047998,-200.3,0.00021707,2]
[346059162,1734681048007,-200.3,0.00021707,2]
[346059163,1734681048016,-200.3,0.00021707,2]
[346059164,1734681048025,-200.3,0.00021707,2]
[346059165,1734681048034,-200.3,0.00021707,2]
[346059166,1734681048044,-999.0,0.00021716,2]
[346059167,1734681048053,-4179.93546403,0.00021717,2]
[346059169,1734681106486,1000.0,0.000225,30]
[346059170,1734681352728,154.28,0.00020698,30]
[346059173,1734681454786,151.39,0.00010137,2]
[346059175,1734681506610,151.82553163,0.00015,15]
[346059176,1734681688630,6000.0,0.000225,30]
[346059179,1734681856757,10000.0,0.000235,120]
[346059182,1734681935350,1000.0,0.000225,30]
[346059183,1734682033098,-450.0,0.00013,2]
[346059184,1734682033123,-160.43,0.00013699,2]
[346059185,1734682033143,-500.0,0.00014441,2]
[346059186,1734682033165,-500.0,0.00015,2]
[346059187,1734682033186,-550.0,0.00017,2]
[346059188,1734682033207,-160.43,0.00017534,2]
[346059189,1734682033229,-2774.43996587,0.00018,2]
[346059190,1734682033250,-151.39,0.00018065,2]
[346059191,1734682033269,-500.0,0.00018972,2]
[346059192,1734682033289,-600.0,0.00019,2]
[346059193,1734682033312,-171.0,0.000193,5]
[346059194,1734682033446,-200.0,0.0001986,2]
[346059195,1734682033469,-23900.0,0.00019865,2]
[346059196,1734682033491,-166.04,0.00019876,2]
[346059197,1734682033513,-4000.0,0.00019882,2]
[346059198,1734682033534,-1604.69,0.00019916,2]
[346059199,1734682033560,-2820.50880012,0.0002,2]
[346059200,1734682047095,-179.49119988,0.0002,2]
[346059201,1734682047115,-167.27,0.00020032,2]
[346059202,1734682047137,-594.52,0.00020065,2]
[346059203,1734682047157,-500.0,0.00020068,2]
[346059204,1734682047178,-900.0,0.00020068,2]
[346059205,1734682047198,-162.47,0.00020366,2]
[346059206,1734682047220,-1000.0,0.00020467,2]
[346059207,1734682047240,-250.0,0.00020477,2]
[346059208,1734682047260,-3005.6,0.00020477,2]
[346059209,1734682047280,-16512.09,0.00020548,2]
[346059210,1734682047301,-434.836,0.0002063,2]
[346059211,1734682047324,-250.0,0.00020658,2]
[346059212,1734682047344,-250.0,0.00020675,2]
[346059213,1734682047364,-250.0,0.00020977,2]
[346059214,1734682047385,-650.0,0.00021,2]
[346059215,1734682047407,-490.28,0.00021047,2]
[346059216,1734682047430,-153.0,0.0002105,2]
[346059217,1734682047451,-153.0,0.0002105,2]
[346059218,1734682047471,-153.0,0.0002105,2]
[346059219,1734682047491,-153.0,0.0002105,2]
[346059220,1734682047513,-153.0,0.0002105,2]
[346059221,1734682047535,-153.0,0.0002105,2]
[346059222,1734682047559,-153.0,0.0002105,2]
[346059223,1734682047580,-153.0,0.0002105,2]
[346059224,1734682047602,-153.0,0.0002105,2]
[346059225,1734682047622,-153.0,0.0002105,2]
[346059226,1734682047643,-153.0,0.0002105,2]
[346059227,1734682047664,-153.0,0.0002105,2]
[346059228,1734682047685,-153.0,0.0002105,2]
[346059229,1734682047708,-153.0,0.0002105,2]
[346059230,1734682047730,-153.0,0.0002105,2]
[346059231,1734682047752,-153.0,0.0002105,2]
[346059232,1734682047772,-153.0,0.0002105,2]
[346059233,1734682047793,-153.0,0.0002105,2]
[346059234,1734682047821,-153.0,0.0002105,2]
[346059235,1734682047843,-153.0,0.0002105,2]
[346059236,1734682047863,-153.0,0.0002105,2]
[346059237,1734682047884,-153.0,0.0002105,2]
[346059238,1734682047906,-153.0,0.0002105,2]
[346059239,1734682047928,-153.0,0.0002105,2]
[346059240,1734682047951,-153.0,0.0002105,2]
[346059241,1734682047972,-153.0,0.0002105,2]
[346059242,1734682047993,-153.0,0.0002105,2]
[346059243,1734682048014,-153.0,0.0002105,2]
[346059244,1734682048036,-153.0,0.0002105,2]
[346059245,1734682048061,-153.0,0.0002105,2]
[346059246,1734682048083,-153.0,0.0002105,2]
[346059247,1734682048105,-153.0,0.0002105,2]
[346059248,1734682048128,-153.0,0.0002105,2]
[346059249,1734682048150,-153.0,0.0002105,2]
[346059250,1734682048171,-153.0,0.0002105,2]
[346059251,1734682048192,-153.0,0.0002105,2]
[346059252,1734682048214,-153.0,0.0002105,2]
[346059253,1734682048240,-153.0,0.0002105,2]
[346059254,1734682048263,-153.0,0.0002105,2]
[346059255,1734682048290,-153.0,0.0002105,2]
[346059256,1734682048318,-153.0,0.0002105,2]
[346059257,1734682048343,-153.0,0.0002105,2]
[346059258,1734682048520,-153.0,0.0002105,2]
[346059259,1734682048541,-153.0,0.0002105,2]
[346059260,1734682048564,-153.0,0.0002105,2]
[346059261,1734682048585,-153.0,0.0002105,2]
[346059262,1734682048606,-153.0,0.0002105,2]
[346059263,1734682048626,-153.0,0.0002105,2]
[346059264,1734682048646,-153.0,0.0002105,2]
[346059265,1734682048667,-153.0,0.0002105,2]
[346059266,1734682048687,-153.0,0.0002105,2]
[346059267,1734682048707,-153.0,0.0002105,2]
[346059268,1734682048728,-153.0,0.0002105,2]
[346059269,1734682048748,-153.0,0.0002105,2]
[346059270,1734682048768,-153.0,0.0002105,2]
[346059271,1734682048789,-153.0,0.0002105,2]
[346059272,1734682048812,-153.0,0.0002105,2]
[346059273,1734682048833,-153.0,0.0002105,2]
[346059274,1734682048854,-153.0,0.0002105,2]
[346059275,1734682048874,-153.0,0.0002105,2]
[346059276,1734682048894,-153.0,0.0002105,2]
[346059277,1734682048914,-153.0,0.0002105,2]
[346059278,1734682048934,-153.0,0.0002105,2]
[346059279,1734682048954,-153.0,0.0002105,2]
[346059280,1734682048974,-153.0,0.0002105,2]
[346059281,1734682048996,-153.0,0.0002105,2]
[346059282,1734682049019,-153.0,0.0002105,2]
[346059283,1734682049041,-153.0,0.0002105,2]
[346059284,1734682049069,-153.0,0.0002105,2]
[346059285,1734682049089,-153.0,0.0002105,2]
[346059286,1734682049112,-153.0,0.0002105,2]
[346059287,1734682049134,-153.0,0.0002105,2]
[346059288,1734682049156,-153.0,0.0002105,2]
[346059289,1734682049177,-153.0,0.0002105,2]
[346059290,1734682049199,-153.0,0.0002105,2]
[346059291,1734682049221,-153.0,0.0002105,2]
[346059292,1734682049243,-153.0,0.0002105,2]
[346059293,1734682049264,-153.0,0.0002105,2]
[346059294,1734682049286,-153.0,0.0002105,2]
[346059295,1734682049307,-153.0,0.0002105,2]
[346059296,1734682049331,-153.0,0.0002105,2]
[346059297,1734682049351,-153.0,0.0002105,2]
[346059298,1734682049372,-153.0,0.0002105,2]
[346059299,1734682049393,-153.0,0.0002105,2]
[346059300,1734682049414,-153.0,0.0002105,2]
[346059301,1734682049435,-150.0,0.000211,2]
[346059302,1734682049456,-500.0,0.00021164,2]
[346059303,1734682049476,-502.23717936,0.00021164,2]
[346059304,1734682049497,-900.0,0.00021164,2]
[346059305,1734682049518,-599.39,0.00021315,2]
[346059306,1734682049540,-231.28,0.00021315,2]
[346059307,1734682049561,-160.43,0.0002137,2]
[346059308,1734682049583,-300.0,0.000214,7]
[346059309,1734682049603,-2500.0,0.000215,2]
[346059310,1734682049624,-500.0,0.00021542,2]
[346059311,1734682049645,-500.0,0.00021543,2]
[346059312,1734682049666,-179.7854,0.00021617,2]
[346059313,1734682049688,-802.85145035,0.00021617,2]
[346059314,1734682049709,-161.26421016,0.00021617,2]
[346059315,1734682049731,-315.73902224,0.00021617,2]
[346059316,1734682049753,-188.61389391,0.00021617,2]
[346059317,1734682049775,-802.85145029,0.00021639,2]
[346059318,1734682049797,-802.85145029,0.00021661,2]
[346059319,1734682049820,-802.85145029,0.00021684,2]
[346059320,1734682049841,-802.85145029,0.00021706,2]
[346059321,1734682049862,-167.93,0.00021707,2]
[346059322,1734682049885,-167.93,0.00021707,2]
[346059323,1734682049907,-167.93,0.00021707,2]
[346059324,1734682049928,-189.53439018,0.00021707,2]
[346059325,1734682049950,-1029.9655829,0.00021713,2]
[346059326,1734682049972,-5952.1726678,0.00021713,2]
[346059327,1734682049993,-1217.1408913,0.00021713,2]
[346059328,1734682050013,-174.5268008,0.00021713,2]
[346059329,1734682050035,-61265.54183023,0.00021717,2]
[346059331,1734682193451,40594.26798883,0.000225,30]
[346059335,1734682231693,-50.469976,0.000182,2]
[346059336,1734682231775,-449.530024,0.000182,2]
[346059337,1734682231785,-800.0,0.00020068,2]
[346059338,1734682231794,-500.0,0.00020068,2]
[346059339,1734682231804,-250.0,0.00020823,2]
[346059340,1734682231813,-96.61911458,0.00020875,2]
[346059341,1734682231830,-153.38088542,0.00020875,2]
[346059342,1734682231839,-800.0,0.00021164,2]
[346059343,1734682231849,-600.0,0.000215,7]
[346059344,1734682231858,-200.58,0.00021516,2]
[346059345,1734682231868,-1000.0,0.000216,7]
[346059346,1734682231877,-1300.0,0.000217,7]
[346059347,1734682231886,-162.84,0.00021707,2]